bitfinex/quotes_SOLUSD_20240920
["timestamp","ask_amount","ask_price","bid_price","bid_amount"]
[1726838370809,22.5874,148.91,148.85,8.66152958]
[1726838371009,22.5874,148.91,148.86,20.12549]
[1726838371629,22.5874,148.91,148.88,20.12549]
[1726838371836,22.5874,148.91,148.88,20.0]
[1726838372336,22.5874,148.91,148.87,20.0]
[1726838372633,22.5874,148.91,148.86,0.12549]
[1726838372834,0.5,148.9,148.83,20.0]
[1726838373029,0.5,148.89,148.84,30.0]
[1726838373212,22.5874,148.91,148.84,30.0]
[1726838373707,24.276884,148.9,148.82,8.66152958]
[1726838374115,23.776884,148.9,148.82,8.66152958]
[1726838374646,39.402184,148.88,148.79,1.68291843]
[1726838374808,23.776884,148.85,148.79,1.68291843]
[1726838375013,6.4712,148.83,148.75,1.16892891]
[1726838375318,6.4712,148.83,148.74,8.66152958]
[1726838375929,6.4712,148.83,148.75,6.74167702]
[1726838376139,6.4712,148.83,148.74,8.66152958]
[1726838376349,23.776884,148.82,148.74,8.66152958]
[1726838376513,24.276884,148.81,148.7,0.35380098]
[1726838376722,24.276884,148.81,148.7,9.01533056]
[1726838376912,23.776884,148.82,148.71,8.66152958]
[1726838377311,21.962,148.81,148.71,8.66152958]
[1726838377514,23.776884,148.8,148.72,20.0]
[1726838377745,0.5,148.79,148.7,20.35380098]
[1726838377927,23.776884,148.8,148.7,20.35380098]
[1726838378724,23.776884,148.8,148.73,20.0]
[1726838379008,21.962,148.81,148.73,20.0]
[1726838379213,21.962,148.81,148.76,20.0]
[1726838381532,21.962,148.81,148.77,1.34415487]
[1726838381731,21.962,148.81,148.76,20.0]
[1726838382321,21.962,148.81,148.76,21.34423625]
[1726838382723,21.962,148.81,148.64,22.45114753]
[1726838382724,0.5,148.8,148.73,20.0]
[1726838382923,21.962,148.81,148.73,20.0]
[1726838383518,0.5,148.8,148.73,20.0]
[1726838383712,24.276884,148.8,148.73,20.0]
[1726838383933,23.776884,148.8,148.73,20.0]
[1726838384115,23.776884,148.8,148.7,0.35380098]
[1726838384519,23.776884,148.8,148.71,1.34462363]
[1726838385140,23.776884,148.8,148.7,0.47929098]
[1726838385352,21.962,148.81,148.72,20.0]
[1726838386958,23.776884,148.8,148.72,20.0]
[1726838387146,23.776884,148.8,148.71,0.12549]
[1726838387450,23.776884,148.8,148.7,0.35380098]
[1726838388147,22.08749,148.81,148.72,0.12549]
[1726838388148,21.962,148.81,148.72,0.12549]
[1726838388460,21.962,148.81,148.71,20.0]
[1726838389140,21.962,148.81,148.72,0.12549]
[1726838390551,21.962,148.81,148.75,20.0]
[1726838390760,0.5,148.8,148.75,20.0]
[1726838391264,0.5,148.8,148.71,30.34759147]
[1726838391555,23.776884,148.8,148.72,20.0]
[1726838391851,23.776884,148.8,148.73,1.34451294]
[1726838392353,21.962,148.81,148.73,0.12549]
[1726838392552,21.962,148.81,148.75,20.0]
[1726838392765,21.962,148.81,148.78,20.0]
[1726838393057,27.964,148.91,148.78,20.0]
[1726838393558,27.964,148.91,148.79,0.12549]
[1726838394063,21.2485,148.91,148.81,20.0]
[1726838394436,6.2073,148.88,148.72,5.52889914]
[1726838394644,15.0412,148.85,148.75,1.34419794]
[1726838395050,15.0412,148.85,148.74,30.34759147]
[1726838395248,21.7595,148.85,148.75,1.34423053]
[1726838395445,21.7593,148.85,148.74,30.34759147]
[1726838395759,23.776884,148.84,148.75,20.0]
[1726838398172,15.0412,148.85,148.76,0.12549]
[1726838398469,0.5,148.84,148.78,20.0]
[1726838399165,15.0412,148.85,148.77,1.34391339]
[1726838399468,21.7596,148.85,148.74,50.34759147]
[1726838399965,23.776884,148.84,148.74,50.34759147]
[1726838400458,23.776884,148.82,148.71,39.00912105]
[1726838400663,0.5,148.81,148.71,8.66152958]
[1726838400855,23.776884,148.82,148.71,8.66152958]
[1726838401161,30.496484,148.82,148.71,8.66152958]
[1726838401872,30.496484,148.82,148.72,20.0]
[1726838402048,23.776884,148.82,148.73,1.34446191]
[1726838402248,23.776884,148.82,148.74,1.34437125]
[1726838402446,6.0133,148.83,148.75,20.0]
[1726838402768,0.5,148.82,148.75,20.0]
[1726838403066,0.5,148.82,148.71,30.34759147]
[1726838403067,0.5,148.82,148.71,0.12549]
[1726838403240,7.2196,148.82,148.71,0.12549]
[1726838403441,0.5,148.82,148.7,0.35380098]
[1726838403859,16.5615,148.8,148.7,0.35380098]
[1726838404041,23.776884,148.79,148.7,0.35380098]
[1726838404455,6.6523,148.78,148.7,0.35380098]
[1726838404776,23.902374,148.76,148.7,0.35380098]
[1726838404944,23.776884,148.77,148.7,0.35380098]
[1726838405273,23.776884,148.77,148.7,0.30863938]
[1726838405844,24.276884,148.77,148.7,0.30863938]
[1726838406058,0.12549,148.76,148.7,0.30863938]
[1726838406256,24.276884,148.75,148.7,0.30863938]
[1726838406457,30.999884,148.75,148.7,0.30863938]
[1726838407449,23.776884,148.75,148.7,0.30863938]
[1726838407850,23.776884,148.77,148.7,0.30863938]
[1726838408051,0.5,148.76,148.7,0.30863938]
[1726838408263,0.12549,148.76,148.7,0.30863938]
[1726838408769,6.6523,148.78,148.7,0.30863938]
[1726838409140,13.3738,148.78,148.7,0.30863938]
[1726838410064,23.776884,148.77,148.7,0.30863938]
[1726838410274,0.5,148.76,148.7,0.30863938]
[1726838411452,7.2226,148.76,148.7,0.30863938]
[1726838411655,23.776884,148.77,148.7,0.30863938]
[1726838411858,6.6523,148.78,148.7,20.30863938]
[1726838412784,16.5615,148.8,148.73,20.0]
[1726838412947,0.5,148.79,148.73,20.0]
[1726838413148,16.5615,148.8,148.73,20.0]
[1726838413468,23.2822,148.8,148.7,20.30863938]
[1726838413975,23.776884,148.79,148.7,20.30863938]
[1726838414952,0.5,148.78,148.7,20.30863938]
[1726838415250,6.5371,148.82,148.72,20.0]
[1726838415450,6.5371,148.82,148.74,50.34759147]
[1726838416067,13.2566,148.82,148.72,20.0]
[1726838416252,7.22,148.81,148.72,20.0]
[1726838416459,6.5371,148.82,148.72,20.0]
[1726838416672,13.2569,148.82,148.72,20.0]
[1726838416869,23.776884,148.79,148.7,20.30863938]
[1726838417579,0.5,148.78,148.7,0.30863938]
[1726838417753,23.776884,148.79,148.71,1.34472107]
[1726838417953,7.2214,148.78,148.7,19.31124916]
[1726838418149,7.2214,148.78,148.71,20.0]
[1726838418570,30.497884,148.79,148.71,20.0]
[1726838418764,23.776884,148.79,148.71,20.0]
[1726838419271,0.5,148.81,148.7,19.31124916]
[1726838419272,23.776884,148.74,148.7,0.30863938]
[1726838419478,0.5,148.73,148.7,0.30863938]
[1726838420489,46.416474,148.71,148.7,0.30863938]
[1726838420655,46.916474,148.71,148.7,0.30863938]
[1726838421160,46.416474,148.71,148.7,0.30863938]
[1726838421474,46.916474,148.71,148.7,0.30863938]
[1726838422173,46.416474,148.71,148.7,0.30863938]
[1726838422471,39.692074,148.71,148.7,0.30863938]
[1726838422655,46.416474,148.71,148.7,0.30863938]
[1726838422981,46.916474,148.71,148.7,0.30863938]
[1726838423667,46.416474,148.71,148.7,0.30863938]
[1726838424049,46.916474,148.71,148.7,0.30863938]
[1726838425265,46.416474,148.71,148.7,0.30863938]
[1726838426368,46.916474,148.71,148.7,0.30863938]
[1726838427177,0.12549,148.67,148.66,0.3966]
[1726838427363,23.776884,148.68,148.66,0.3966]
[1726838427566,0.5,148.67,148.66,0.3966]
[1726838428781,30.628674,148.67,148.66,0.3966]
[1726838429388,23.776884,148.67,148.66,0.3966]
[1726838429679,24.276884,148.67,148.66,0.3966]
[1726838429979,31.128674,148.67,148.66,0.3966]
[1726838430208,37.544674,148.67,148.66,0.3966]
[1726838430476,30.629974,148.64,148.63,0.06951872]
[1726838430680,31.129974,148.64,148.63,0.06951872]
[1726838431272,6.7285,148.62,148.61,0.2929041]
[1726838431460,31.130874,148.62,148.61,0.2929041]
[1726838432070,30.630874,148.62,148.61,0.2929041]
[1726838432779,31.005384,148.62,148.61,0.2929041]
[1726838433089,31.130874,148.62,148.61,0.2929041]
[1726838433581,37.759674,148.62,148.61,0.2929041]
[1726838433960,6.7299,148.59,148.58,0.1036959]
[1726838434274,7.35539,148.59,148.58,0.1036959]
[1726838434588,31.006784,148.59,148.58,0.1036959]
[1726838435184,31.132274,148.59,148.58,0.1036959]
[1726838435369,6.7308,148.57,148.54,0.0695294]
[1726838435575,6.7308,148.57,148.54,0.3677577]
[1726838435576,24.276884,148.56,148.54,0.3677577]
[1726838435879,23.776884,148.56,148.54,0.3677577]
[1726838436460,6.7303,148.58,148.54,0.3677577]
[1726838436665,23.776884,148.57,148.54,0.3677577]
[1726838437684,0.12549,148.59,148.54,7.0997577]
[1726838438068,23.776884,148.58,148.54,0.3677577]
[1726838438266,0.5,148.57,148.54,0.3677577]
[1726838438466,13.3574,148.62,148.57,6.7307]
[1726838438665,6.6288,148.62,148.54,0.3677577]
[1726838438892,6.6288,148.62,148.58,6.7299]
[1726838439076,6.6288,148.62,148.59,6.7299]
[1726838439272,6.7272,148.65,148.61,6.7288]
[1726838439479,0.5,148.64,148.57,0.2982283]
[1726838439790,6.5232,148.67,148.57,21.64407451]
[1726838440404,6.5232,148.67,148.63,6.728]
[1726838440405,0.5,148.66,148.63,6.728]
[1726838440691,0.5,148.65,148.63,6.728]
[1726838441674,0.5,148.65,148.57,20.2982283]
[1726838441675,0.5,148.65,148.62,6.7285]
[1726838441881,13.2496,148.67,148.63,6.728]
[1726838442082,6.0069,148.71,148.64,6.7274]
[1726838442290,6.0069,148.71,148.67,6.7262]
[1726838442480,6.0069,148.71,148.7,6.7249]
[1726838442788,15.7265,148.72,148.63,20.0]
[1726838442997,0.5,148.71,148.68,6.7258]
[1726838443169,0.5,148.71,148.63,20.0]
[1726838443369,0.5,148.71,148.68,6.7254]
[1726838443571,0.1654795,148.73,148.68,6.7254]
[1726838443877,0.5,148.72,148.68,6.7254]
[1726838444587,0.5,148.72,148.65,20.0]
[1726838445383,6.7245,148.71,148.65,20.0]
[1726838445576,0.5,148.7,148.65,20.0]
[1726838445978,6.7241,148.72,148.65,20.0]
[1726838446179,6.8890795,148.73,148.65,20.0]
[1726838446476,0.5,148.72,148.65,20.0]
[1726838446895,6.8890795,148.73,148.65,20.0]
[1726838447395,0.5,148.72,148.65,20.0]
[1726838447584,0.1654795,148.73,148.65,20.0]
[1726838448803,6.724,148.72,148.65,20.0]
[1726838449104,6.7246,148.71,148.63,20.0]
[1726838449680,0.1654795,148.73,148.65,30.45183808]
[1726838449885,0.1654795,148.73,148.66,39.01383492]
[1726838450295,0.5,148.72,148.65,20.0]
[1726838450498,0.1654795,148.73,148.65,20.0]
[1726838450690,0.1654795,148.73,148.69,6.7253]
[1726838450993,6.8891795,148.73,148.68,6.7255]
[1726838451386,0.1654795,148.73,148.69,6.7253]
[1726838452175,0.1654795,148.73,148.67,20.0]
[1726838452378,0.1654795,148.73,148.68,1.34502116]
[1726838453299,0.1654795,148.73,148.67,20.0]
[1726838454215,0.1654795,148.73,148.64,19.01383492]
[1726838454376,0.1654795,148.73,148.65,20.0]
[1726838454574,0.5,148.72,148.65,20.0]
[1726838455079,6.8890795,148.73,148.66,1.34518694]
[1726838455291,6.8890795,148.73,148.65,20.0]
[1726838455495,6.7248,148.71,148.6,72.8114]
[1726838455690,7.2253,148.7,148.61,30.0]
[1726838455888,6.7255,148.69,148.6,41.82523492]
[1726838456090,6.7268,148.66,148.57,6.9210283]
[1726838456390,23.902374,148.71,148.58,8.66152958]
[1726838456573,23.902374,148.71,148.59,30.0]
[1726838456779,23.902374,148.71,148.63,6.728]
[1726838456976,0.5,148.7,148.63,6.728]
[1726838457212,6.7266,148.67,148.63,6.728]
[1726838457593,6.7259,148.68,148.64,6.7274]
[1726838457997,6.3767,148.67,148.62,6.7282]
[1726838458186,0.5,148.66,148.62,6.7282]
[1726838458400,0.5,148.66,148.61,6.7289]
[1726838458594,6.7272,148.65,148.61,6.7289]
[1726838458781,6.7272,148.65,148.57,6.9210283]
[1726838458782,7.2277,148.64,148.57,0.2982283]
[1726838459184,0.5,148.64,148.57,0.2982283]
[1726838459491,24.402374,148.66,148.58,6.7303]
[1726838459705,6.7282,148.63,148.58,6.7303]
[1726838459894,16.8182,148.65,148.57,0.2982283]
[1726838460206,6.7286,148.62,148.57,7.0286283]
[1726838460503,0.5,148.61,148.57,7.0286283]
[1726838460905,6.7292,148.61,148.57,0.2982283]
[1726838461114,0.5,148.6,148.57,0.2982283]
[1726838461290,6.7286,148.62,148.57,7.0286283]
[1726838461482,6.729,148.61,148.57,7.0286283]
[1726838461689,6.7282,148.63,148.59,6.7299]
[1726838461999,6.7282,148.63,148.57,0.2982283]
[1726838462000,6.3767,148.67,148.57,0.2982283]
[1726838462201,6.3767,148.67,148.64,6.7275]
[1726838462587,13.103,148.67,148.63,6.728]
[1726838462914,6.3767,148.67,148.63,6.728]
[1726838463101,22.908,148.68,148.66,6.7267]
[1726838463102,16.1821,148.68,148.66,6.7267]
[1726838463305,6.725,148.7,148.66,6.7267]
[1726838463687,12.7348,148.71,148.66,6.7267]
[1726838464190,12.7348,148.71,148.67,6.7262]
[1726838464502,6.725,148.7,148.66,6.7267]
[1726838465005,6.0103,148.71,148.64,6.7272]
[1726838465211,0.5,148.7,148.64,6.7272]
[1726838465441,6.7264,148.67,148.63,6.7279]
[1726838465614,6.7258,148.69,148.64,6.7275]
[1726838465789,6.0103,148.71,148.58,70.0]
[1726838465988,6.0103,148.71,148.67,6.7262]
[1726838466193,6.0103,148.71,148.68,6.7258]
[1726838466512,7.2251,148.7,148.65,6.7268]
[1726838466695,6.7251,148.7,148.66,6.7266]
[1726838467085,6.7256,148.69,148.65,6.727]
[1726838467413,0.5,148.68,148.58,20.0]
[1726838467708,6.7263,148.67,148.62,6.7281]
[1726838467919,6.7259,148.68,148.64,6.7275]
[1726838468089,23.776884,148.7,148.59,50.0]
[1726838468290,6.0103,148.71,148.68,6.7257]
[1726838468609,6.0103,148.71,148.66,6.7266]
[1726838468610,0.5,148.7,148.66,6.7266]
[1726838468790,6.0103,148.71,148.69,6.7254]
[1726838469110,6.0103,148.71,148.68,6.7258]
[1726838469520,6.0103,148.71,148.6,89.13906492]
[1726838469521,6.0103,148.71,148.61,0.12549]
[1726838469693,6.0103,148.71,148.61,50.12549]
[1726838469900,6.0103,148.71,148.69,6.7252]
[1726838470100,6.0103,148.71,148.68,6.7257]
[1726838470602,13.2348,148.71,148.61,20.12549]
[1726838470799,6.7249,148.7,148.61,20.0]
[1726838471106,6.7255,148.69,148.61,20.0]
[1726838471427,7.226,148.68,148.58,20.0]
[1726838471608,6.0103,148.71,148.59,31.34553878]
[1726838471609,23.776884,148.7,148.59,31.34553878]
[1726838472004,23.776884,148.7,148.59,30.0]
[1726838472729,12.7351,148.71,148.6,20.0]
[1726838473231,12.7351,148.71,148.67,6.7261]
[1726838473610,6.7249,148.7,148.65,6.7267]
[1726838473925,6.0103,148.71,148.62,20.12549]
[1726838474506,6.0103,148.71,148.62,0.12549]
[1726838474910,0.5,148.7,148.6,20.0]
[1726838475218,6.7252,148.7,148.65,6.7268]
[1726838475605,6.7255,148.69,148.65,6.7268]
[1726838475806,6.7259,148.68,148.6,20.0]
[1726838476003,6.7254,148.69,148.6,20.0]
[1726838476222,23.776884,148.7,148.6,20.0]
[1726838476630,7.2254,148.69,148.6,20.0]
[1726838476830,23.776884,148.7,148.66,6.7264]
[1726838477025,0.5,148.69,148.66,6.7264]
[1726838477335,0.5,148.69,148.66,6.7266]
[1726838477635,6.0103,148.71,148.61,0.12549]
[1726838477822,0.5,148.7,148.6,20.0]
[1726838478019,6.7254,148.69,148.65,6.7272]
[1726838478404,30.501884,148.7,148.66,6.7267]
[1726838478631,30.501884,148.7,148.6,20.0]
[1726838478632,6.7263,148.67,148.63,6.7277]
[1726838478942,6.7259,148.68,148.64,6.7273]
[1726838479439,6.7291,148.61,148.58,30.0]
[1726838479609,6.5186,148.66,148.57,0.2982283]
[1726838479610,23.776884,148.65,148.57,0.2982283]
[1726838479809,6.5186,148.66,148.57,0.2982283]
[1726838479810,23.776884,148.64,148.57,0.2982283]
[1726838480212,23.776884,148.65,148.57,0.2982283]
[1726838480516,30.504484,148.65,148.59,6.7298]
[1726838480710,30.504484,148.65,148.57,0.2982283]
[1726838480913,23.776884,148.65,148.57,0.2982283]
[1726838481220,7.2276,148.64,148.59,6.7295]
[1726838481433,0.5,148.64,148.57,0.2982283]
[1726838481827,0.12549,148.63,148.57,0.2982283]
[1726838482019,0.5,148.62,148.57,0.2982283]
[1726838482332,23.902374,148.61,148.57,0.2982283]
[1726838482832,23.776884,148.59,148.57,0.2982283]
[1726838483429,23.3355,148.66,148.57,0.2982283]
[1726838483635,6.729,148.61,148.57,0.2982283]
[1726838483826,23.776884,148.62,148.58,6.7302]
[1726838484013,23.776884,148.62,148.57,0.2982283]
[1726838484216,7.2281,148.63,148.58,6.7303]
[1726838484415,6.7281,148.63,148.58,6.7303]
[1726838484810,7.2285,148.62,148.57,7.0289283]
[1726838485214,6.5186,148.66,148.61,6.7289]
[1726838485444,6.5186,148.66,148.57,0.2982283]
[1726838485636,6.5186,148.66,148.57,32.12167355]
[1726838485931,0.5,148.65,148.58,20.0]
[1726838486432,0.5,148.65,148.63,6.728]
[1726838486617,0.5,148.65,148.62,6.7285]
[1726838487012,0.5,148.65,148.61,6.729]
[1726838487213,0.5,148.65,148.57,0.2982283]
[1726838487955,24.276884,148.65,148.57,0.2982283]
[1726838488745,23.776884,148.65,148.57,0.2982283]
[1726838489446,6.7284,148.63,148.58,6.7303]
[1726838490016,30.504484,148.65,148.57,0.2982283]
[1726838490214,6.5186,148.66,148.57,0.2982283]
[1726838490518,0.5,148.65,148.57,0.2982283]
[1726838491337,7.2273,148.65,148.61,6.7286]
[1726838493242,6.7277,148.64,148.59,6.7295]
[1726838493439,6.5186,148.66,148.57,0.2982283]
[1726838493844,6.05,148.7,148.58,21.3455961]
[1726838494041,6.05,148.7,148.61,20.0]
[1726838494042,0.5,148.69,148.61,20.0]
[1726838494346,0.5,148.69,148.66,6.7266]
[1726838494561,0.5,148.69,148.66,6.7267]
[1726838494845,7.2254,148.69,148.65,6.727]
[1726838496122,24.276884,148.69,148.62,6.7284]
[1726838496727,6.7272,148.65,148.57,21.8616283]
[1726838496930,6.7272,148.65,148.57,21.5634]
[1726838497139,23.776884,148.69,148.61,6.7287]
[1726838497140,6.7268,148.66,148.61,6.7287]
[1726838497746,6.7268,148.66,148.62,6.7284]
[1726838498544,6.7279,148.64,148.58,20.0]
[1726838498742,16.815,148.68,148.58,20.0]
[1726838498743,0.5,148.63,148.58,20.0]
[1726838498950,6.7277,148.64,148.6,6.7291]
[1726838499122,0.5,148.63,148.6,6.7291]
[1726838500223,0.5,148.64,148.6,6.7291]
[1726838500653,0.5,148.64,148.61,6.7288]
[1726838502553,7.2277,148.64,148.6,6.7293]
[1726838502849,0.5,148.63,148.6,6.7293]
[1726838503160,6.73,148.59,148.57,0.2951283]
[1726838503353,7.2303,148.58,148.57,0.2951283]
[1726838503653,6.73,148.59,148.57,0.2951283]
[1726838503861,0.5,148.58,148.57,0.2951283]
[1726838505024,7.2299,148.59,148.57,0.2951283]
[1726838505222,31.007184,148.58,148.57,0.2951283]
[1726838505461,31.007184,148.58,148.54,0.3209735]
[1726838505462,6.7317,148.55,148.54,0.3209735]
[1726838505750,6.7317,148.55,148.49,0.35514]
[1726838505751,6.734,148.5,148.49,0.35514]
[1726838506125,30.510884,148.5,148.49,0.35514]
[1726838506526,0.5,148.5,148.49,0.35514]
[1726838506751,23.776884,148.53,148.49,0.35514]
[1726838506752,6.7335,148.51,148.49,0.35514]
[1726838507154,6.7331,148.52,148.49,0.35514]
[1726838507539,23.776884,148.54,148.49,0.35514]
[1726838508940,6.7328,148.53,148.49,0.35514]
[1726838509148,6.7327,148.53,148.49,0.35514]
[1726838509456,0.5,148.52,148.49,0.35514]
[1726838509659,6.7327,148.53,148.49,0.35514]
[1726838509964,23.776884,148.54,148.49,0.35514]
[1726838510152,6.6515,148.55,148.49,0.35514]
[1726838510477,6.6515,148.55,148.52,6.733]
[1726838510661,22.3839,148.58,148.53,6.7325]
[1726838511151,7.2309,148.57,148.52,6.733]
[1726838511347,7.2309,148.57,148.53,6.7326]
[1726838511552,15.6532,148.58,148.54,6.7321]
[1726838512268,0.5,148.57,148.54,6.7321]
[1726838512555,15.6532,148.58,148.54,6.7321]
[1726838512869,6.5944,148.59,148.56,6.7311]
[1726838513156,0.2514441,148.65,148.57,50.64337086]
[1726838513363,0.2514441,148.65,148.64,6.7276]
[1726838514436,0.2514441,148.65,148.63,6.728]
[1726838514636,0.2514441,148.65,148.64,6.7276]
[1726838517665,0.2514441,148.65,148.63,6.728]
[1726838519159,0.2514441,148.65,148.6,20.0]
[1726838519344,0.2514441,148.65,148.61,30.0]
[1726838519853,0.2514441,148.65,148.64,6.7276]
[1726838522043,0.2514441,148.65,148.64,36.7276]
[1726838522850,0.2514441,148.65,148.64,6.7276]
[1726838523752,0.2514441,148.65,148.63,6.7279]
[1726838524568,0.2514441,148.65,148.64,6.7276]
[1726838525240,0.2514441,148.65,148.58,50.0]
[1726838525441,0.2514441,148.65,148.59,30.0]
[1726838526160,0.2514441,148.65,148.62,6.7284]
[1726838526463,0.2514441,148.65,148.63,6.7279]
[1726838528762,0.2514441,148.65,148.64,6.7276]
[1726838531583,0.2514441,148.65,148.62,6.7284]
[1726838532455,0.2514441,148.65,148.56,97.03048086]
[1726838532648,0.2514441,148.65,148.59,6.7297]
[1726838532853,6.7286,148.62,148.53,36.55308086]
[1726838533166,6.7282,148.63,148.58,6.73]
[1726838534668,6.7282,148.63,148.59,6.7299]
[1726838535882,16.8960441,148.65,148.6,1.34587173]
[1726838536055,6.7282,148.63,148.59,6.7298]
[1726838536366,7.2285,148.62,148.58,6.7302]
[1726838536576,6.7293,148.61,148.57,6.7306]
[1726838536744,6.7293,148.61,148.54,20.0]
[1726838536745,6.7285,148.62,148.55,20.0]
[1726838536948,6.7285,148.62,148.58,6.7303]
[1726838537253,6.7285,148.62,148.57,6.7307]
[1726838537458,6.729,148.61,148.57,6.7307]
[1726838537662,6.7286,148.62,148.57,6.7307]
[1726838537859,6.7286,148.62,148.58,6.7303]
[1726838538757,6.7282,148.63,148.59,6.7298]
[1726838538971,6.7277,148.64,148.6,6.7293]
[1726838539366,23.6233441,148.65,148.6,6.7293]
[1726838539755,23.6233441,148.65,148.61,6.7289]
[1726838541470,0.2514441,148.65,148.62,6.7285]
[1726838541669,0.2514441,148.65,148.63,1.34557348]
[1726838541861,0.2514441,148.65,148.58,50.0]
[1726838541862,0.2514441,148.65,148.64,6.7276]
[1726838542455,0.2514441,148.65,148.63,6.7277]
[1726838542856,0.2514441,148.65,148.64,6.7276]
[1726838543664,0.2514441,148.65,148.64,8.0728444]
[1726838543968,0.2514441,148.65,148.64,76.7276]
[1726838544181,0.2514441,148.65,148.64,76.85309]
[1726838545395,0.2514441,148.65,148.64,100.629974]
[1726838545887,0.2514441,148.65,148.64,76.85309]
[1726838546493,0.2514441,148.65,148.64,6.85309]
[1726838547391,0.2514441,148.65,148.64,56.85309]
[1726838547694,0.2514441,148.65,148.64,100.629974]
[1726838548008,0.2514441,148.65,148.64,76.85309]
[1726838548565,0.2514441,148.65,148.64,78.19812256]
[1726838549099,0.2514441,148.65,148.64,100.629974]
[1726838549572,0.2514441,148.65,148.64,76.85309]
[1726838550189,0.2514441,148.65,148.64,26.85309]
[1726838550872,0.2514441,148.65,148.64,76.85309]
[1726838551397,0.2514441,148.65,148.64,100.629974]
[1726838554097,0.2514441,148.65,148.64,76.85309]
[1726838555391,0.2514441,148.65,148.64,100.629974]
[1726838556084,0.2514441,148.69,148.68,43.902374]
[1726838556402,0.2514441,148.74,148.73,70.12549]
[1726838556610,0.2514441,148.74,148.73,71.46970107]
[1726838556783,0.2514441,148.74,148.73,70.12549]
[1726838557872,0.2514441,148.74,148.73,93.902374]
[1726838558283,0.2514441,148.74,148.73,95.24643394]
[1726838558480,0.2514441,148.74,148.73,93.902374]
[1726838559086,0.2514441,148.74,148.73,95.2463958]
[1726838559701,0.2514441,148.74,148.73,93.902374]
[1726838560183,0.0695294,148.76,148.73,93.902374]
[1726838560184,0.0695294,148.76,148.75,50.0]
[1726838560516,0.0695294,148.76,148.75,124.42025486]
[1726838561499,0.0695294,148.76,148.75,93.902374]
[1726838563304,0.0695294,148.76,148.75,70.0]
[1726838564477,0.0695294,148.76,148.75,93.776884]
[1726838564805,0.0695294,148.76,148.75,93.902374]
[1726838565876,0.0695294,148.76,148.75,124.42025486]
[1726838569490,0.2514441,148.78,148.77,93.902374]
[1726838569694,0.1036959,148.81,148.8,50.0]
[1726838569896,0.1036959,148.81,148.8,93.902374]
[1726838570486,0.1036959,148.81,148.8,70.12549]
[1726838571484,0.1036959,148.81,148.8,93.902374]
[1726838571681,0.1036959,148.81,148.8,123.902374]
[1726838571880,0.1036959,148.81,148.8,100.12549]
[1726838573091,0.1036959,148.81,148.8,70.12549]
[1726838574403,0.1036959,148.81,148.8,93.902374]
[1726838574591,0.1036959,148.81,148.8,123.902374]
[1726838577413,0.1036959,148.81,148.8,100.12549]
[1726838580212,0.1036959,148.81,148.8,30.0]
[1726838581190,0.1036959,148.81,148.79,50.0]
[1726838581392,0.1036959,148.81,148.8,18.98091597]
[1726838582023,0.1036959,148.81,148.8,42.88328997]
[1726838582397,0.1036959,148.81,148.8,62.88328997]
[1726838582903,0.1036959,148.81,148.8,92.88328997]
[1726838583536,0.3176909,148.85,148.83,50.0]
[1726838583695,0.3176909,148.85,148.84,39.10640597]
[1726838583898,0.3176909,148.85,148.84,62.88328997]
[1726838584729,0.3176909,148.85,148.84,92.88328997]
[1726838585805,0.1036959,148.9,148.87,50.0]
[1726838586004,0.1036959,148.9,148.88,21.34293492]
[1726838586219,0.1036959,148.9,148.89,70.12549]
[1726838587095,0.1036959,148.9,148.88,20.0]
[1726838587924,0.1036959,148.9,148.89,0.12549]